bitfinex/quotes_BTCUSD_20240611
["timestamp","ask_amount","ask_price","bid_price","bid_amount"]
[1718087852496,0.025234,67709.0,67708.0,0.147693]
[1718087852695,0.025234,67709.0,67708.0,0.167693]
[1718087852912,0.025234,67709.0,67708.0,0.18589433]
[1718087853114,0.025234,67709.0,67708.0,0.16589433]
[1718087853542,0.255934,67709.0,67708.0,0.16589433]
[1718087853755,0.255934,67709.0,67708.0,0.01820133]
[1718087854161,0.26102959,67709.0,67708.0,0.01820133]
[1718087854379,0.255934,67709.0,67708.0,0.01820133]
[1718087854583,0.03032959,67709.0,67708.0,0.03820133]
[1718087854794,0.00509559,67709.0,67708.0,0.02]
[1718087855006,0.00509559,67709.0,67708.0,0.021]
[1718087855007,0.00709559,67709.0,67708.0,0.021]
[1718087855227,0.002,67709.0,67708.0,0.023]
[1718087855442,0.002,67709.0,67708.0,0.170693]
[1718087855648,0.004,67709.0,67708.0,0.168693]
[1718087856065,0.004,67709.0,67708.0,0.35414886]
[1718087857128,0.004,67709.0,67708.0,0.35114886]
[1718087857336,0.004,67709.0,67708.0,0.20415433]
[1718087857551,0.0777,67713.0,67709.0,0.02]
[1718087857772,0.0777,67713.0,67708.0,0.147693]
[1718087857991,0.001,67709.0,67708.0,0.148693]
[1718087858230,0.00508316,67712.0,67708.0,0.147693]
[1718087858442,0.0777,67713.0,67709.0,0.01820133]
[1718087859286,0.0787,67713.0,67709.0,0.01820133]
[1718087859707,0.025234,67712.0,67709.0,0.01820133]
[1718087860616,0.025234,67712.0,67709.0,0.04120133]
[1718087861040,0.025234,67712.0,67709.0,0.04220133]
[1718087861208,0.025234,67712.0,67710.0,0.01908403]
[1718087861669,0.026234,67712.0,67710.0,0.01908403]
[1718087862465,0.025234,67712.0,67710.0,0.01908403]
[1718087862693,0.00507974,67711.0,67710.0,0.01908403]
[1718087862920,0.00507974,67711.0,67710.0,0.04208403]
[1718087863469,0.00507974,67711.0,67710.0,0.02208403]
[1718087863892,0.00507974,67711.0,67710.0,0.02308403]
[1718087864291,0.00507974,67711.0,67710.0,0.04208403]
[1718087864504,0.00507974,67711.0,67710.0,0.04308403]
[1718087864708,0.00607974,67711.0,67710.0,0.04008403]
[1718087864904,0.00607974,67711.0,67710.0,0.03908403]
[1718087865144,0.00607974,67711.0,67710.0,0.02208403]
[1718087865354,0.00707974,67711.0,67710.0,0.02308403]
[1718087865556,0.00507974,67711.0,67710.0,0.023]
[1718087865976,0.00607974,67711.0,67710.0,0.021]
[1718087866414,0.00607974,67711.0,67710.0,0.024]
[1718087868186,0.00507974,67711.0,67710.0,0.02]
[1718087868664,0.00607974,67711.0,67710.0,0.024]
[1718087868820,0.00607974,67711.0,67710.0,0.023]
[1718087868970,0.00607974,67711.0,67710.0,0.04201556]
[1718087869212,0.00607974,67711.0,67710.0,0.03901556]
[1718087869429,0.00707974,67711.0,67710.0,0.04001556]
[1718087869642,0.00507974,67711.0,67710.0,0.04201556]
[1718087870305,0.00607974,67711.0,67710.0,0.02301556]
[1718087871344,0.00507974,67711.0,67710.0,0.01901556]
[1718087871620,0.00607974,67711.0,67710.0,0.02001556]
[1718087871891,0.00607974,67711.0,67710.0,0.02301556]
[1718087872171,0.00507974,67711.0,67710.0,0.02201556]
[1718087872408,0.19091374,67711.0,67710.0,0.02001556]
[1718087872641,0.19091374,67711.0,67710.0,0.001]
[1718087872897,0.19091374,67711.0,67710.0,0.004]
[1718087873987,0.18761374,67711.0,67710.0,0.004]
[1718087875468,0.025234,67709.0,67708.0,0.000946]
[1718087875702,0.03040227,67709.0,67708.0,0.01956216]
[1718087876523,0.03040227,67709.0,67708.0,0.03956216]
[1718087876749,0.03040227,67709.0,67708.0,0.04256216]
[1718087877184,0.03140227,67709.0,67708.0,0.02356216]
[1718087877595,0.03140227,67709.0,67708.0,0.16981287]
[1718087880200,0.03140227,67709.0,67708.0,0.14981287]
[1718087880374,0.03140227,67709.0,67708.0,0.16981287]
[1718087880578,0.03140227,67709.0,67708.0,0.13119671]
[1718087880785,0.19500227,67709.0,67708.0,0.13119671]
[1718087880989,0.19500227,67709.0,67708.0,0.004946]
[1718087880990,0.189834,67709.0,67708.0,0.004946]
[1718087881219,0.19495354,67709.0,67708.0,0.004946]
[1718087882004,0.82247347,67709.0,67708.0,0.004946]
[1718087882230,1.65180068,67709.0,67708.0,0.004946]
[1718087882455,1.65180068,67709.0,67687.0,0.0174762]
[1718087882456,0.025234,67688.0,67687.0,0.0174762]
[1718087882671,0.025234,67688.0,67681.0,0.147751]
[1718087882672,0.025234,67684.0,67681.0,0.147751]
[1718087883148,0.0303419,67683.0,67682.0,0.14547625]
[1718087883556,0.0303419,67683.0,67682.0,0.167749]
[1718087883703,0.0303419,67683.0,67682.0,0.2090339]
[1718087883930,0.025234,67683.0,67682.0,0.2090339]
[1718087884153,0.025234,67687.0,67686.0,0.02]
[1718087884413,0.025234,67687.0,67686.0,0.167741]
[1718087884647,0.025234,67691.0,67690.0,0.02]
[1718087885816,0.025234,67690.0,67689.0,0.02]
[1718087886017,0.025234,67690.0,67686.0,0.18107432]
[1718087886630,0.025234,67690.0,67686.0,0.20107432]
[1718087887045,0.039234,67690.0,67689.0,0.002]
[1718087887389,0.039234,67690.0,67689.0,0.02230743]
[1718087888239,0.039234,67690.0,67689.0,0.04230743]
[1718087888435,0.039234,67690.0,67689.0,0.02230743]
[1718087888643,0.039234,67690.0,67689.0,0.02030743]
[1718087889059,0.025234,67690.0,67689.0,0.02030743]
[1718087889231,0.025234,67690.0,67689.0,0.04030743]
[1718087889430,0.039234,67690.0,67689.0,0.04030743]
[1718087889639,0.025234,67690.0,67689.0,0.04030743]
[1718087889838,0.025234,67690.0,67689.0,0.04230743]
[1718087890041,0.025234,67690.0,67689.0,0.02230743]
[1718087890218,0.025234,67690.0,67689.0,0.04330743]
[1718087890219,0.039234,67690.0,67689.0,0.04330743]
[1718087890428,0.025234,67691.0,67689.0,0.18804043]
[1718087890645,0.025234,67692.0,67691.0,0.02]
[1718087892266,0.025234,67691.0,67690.0,0.01880404]
[1718087892720,0.0303084,67691.0,67690.0,0.01880404]
[1718087893912,0.0443084,67691.0,67690.0,0.01980404]
[1718087895395,0.0443084,67691.0,67690.0,0.02080404]
[1718087895614,0.0443084,67691.0,67690.0,0.04080404]
[1718087895817,0.0190744,67691.0,67690.0,0.04080404]
[1718087896031,0.0443084,67691.0,67690.0,0.04080404]
[1718087896867,0.0443084,67691.0,67690.0,0.02080404]
[1718087900014,0.0443084,67691.0,67690.0,0.04080404]
[1718087904073,0.03655772,67691.0,67690.0,0.02080404]
[1718087904255,0.0413784,67691.0,67690.0,0.02080404]
[1718087904927,0.1961784,67691.0,67690.0,0.002]
[1718087905538,0.18485468,67691.0,67690.0,0.001]
[1718087906024,0.19885468,67691.0,67690.0,0.002]
[1718087906248,0.18485468,67691.0,67689.0,0.000946]
[1718087907235,0.19885468,67691.0,67690.0,0.001]
[1718087907448,0.19885468,67691.0,67690.0,0.0179689]
[1718087907852,0.19985468,67691.0,67690.0,0.0179689]
[1718087908457,0.19885468,67691.0,67690.0,0.0179689]
[1718087908816,0.18785468,67691.0,67690.0,0.0169689]
[1718087909018,0.03305468,67691.0,67690.0,0.0169689]
[1718087909320,0.04705468,67691.0,67690.0,0.0169689]
[1718087909490,0.03305468,67691.0,67690.0,0.0169689]
[1718087909868,0.04705468,67691.0,67690.0,0.0179689]
[1718087910234,0.03305468,67691.0,67690.0,0.0169689]
[1718087910436,0.04705468,67691.0,67690.0,0.0179689]
[1718087910906,0.04405468,67691.0,67690.0,0.0179689]
[1718087911500,0.04705468,67691.0,67690.0,0.0179689]
[1718087911688,0.20035468,67691.0,67690.0,0.0179689]
[1718087911886,0.20035468,67691.0,67690.0,0.001]
[1718087911887,0.50757461,67691.0,67690.0,0.001]
[1718087912961,0.42207461,67691.0,67690.0,0.001]
[1718087919707,0.46621539,67691.0,67690.0,0.001]
[1718087919920,0.42207461,67691.0,67690.0,0.001]
[1718087920306,0.46621539,67691.0,67690.0,0.001]
[1718087921273,0.42207461,67691.0,67690.0,0.001]
[1718087923317,0.48828578,67691.0,67690.0,0.001]
[1718087924019,0.48838912,67691.0,67690.0,0.001]
[1718087924424,0.74945417,67691.0,67690.0,0.001]
[1718087925087,0.74945417,67691.0,67690.0,0.0104]
[1718087925928,0.37443424,67691.0,67690.0,0.0104]
[1718087926143,0.37443424,67691.0,67690.0,0.0498446]
[1718087926350,0.09224612,67691.0,67690.0,0.0498446]
[1718087926529,0.04800068,67691.0,67690.0,0.0498446]
[1718087926737,0.04800068,67691.0,67690.0,0.0298446]
[1718087926990,0.04800068,67691.0,67690.0,0.0498446]
[1718087927619,0.04800068,67691.0,67690.0,0.0298446]
[1718087928248,0.09224612,67691.0,67690.0,0.0298446]
[1718087930204,0.09227333,67691.0,67690.0,0.0298446]
[1718087930835,0.33422958,67691.0,67690.0,0.01126]
[1718087931064,0.26782061,67691.0,67690.0,0.01126]
[1718087931268,0.59517693,67691.0,67690.0,0.01126]
[1718087931478,0.68372702,67691.0,67690.0,0.01126]
[1718087931683,0.59517693,67691.0,67690.0,0.01126]
[1718087932097,0.70568675,67691.0,67690.0,0.01126]
[1718087932311,0.75379913,67691.0,67690.0,0.01126]
[1718087932932,0.83929913,67691.0,67690.0,0.01126]
[1718087933769,0.83629913,67691.0,67690.0,0.01126]
[1718087933980,0.82229913,67691.0,67690.0,0.01026]
[1718087934220,0.84432561,67691.0,67690.0,0.01226]
[1718087934627,0.83632561,67691.0,67690.0,0.01026]
[1718087935011,0.85832561,67691.0,67690.0,0.01226]
[1718087937608,0.53094281,67691.0,67690.0,0.01226]
[1718087937843,1.35691096,67691.0,67690.0,0.01226]
[1718087938057,1.53920239,67691.0,67690.0,0.01226]
[1718087938706,1.15691096,67691.0,67690.0,0.01226]
[1718087938914,1.34014043,67691.0,67690.0,0.01226]
[1718087939524,1.24241096,67691.0,67690.0,0.01226]
[1718087939736,1.34041417,67691.0,67690.0,0.01226]
[1718087940287,0.72856424,67691.0,67690.0,0.01226]
[1718087940490,0.71918028,67691.0,67690.0,0.00286]
[1718087940697,0.42117707,67691.0,67690.0,0.00286]
[1718087941097,0.51861967,67691.0,67690.0,0.00286]
[1718087941315,0.47032476,67691.0,67690.0,0.00286]
[1718087941510,0.63112476,67691.0,67690.0,0.00286]
[1718087941717,0.54562476,67691.0,67690.0,0.00286]
[1718087942005,0.63112476,67691.0,67690.0,0.00286]
[1718087942198,0.77544469,67691.0,67690.0,0.00286]
[1718087942405,0.85784469,67691.0,67690.0,0.00286]
[1718087942906,1.1239196,67691.0,67690.0,0.00286]
[1718087943332,1.67164256,67691.0,67690.0,0.00286]
[1718087943537,1.53886946,67691.0,67690.0,0.00286]
[1718087944152,1.33886946,67691.0,67690.0,0.00286]
[1718087944438,1.47163115,67691.0,67690.0,0.00286]
[1718087945930,1.38613115,67691.0,67690.0,5.00286]
[1718087946141,1.47163115,67691.0,67690.0,5.00286]
[1718087947441,1.33887561,67691.0,67690.0,5.00286]
[1718087947671,1.25337561,67691.0,67690.0,5.00286]
[1718087948114,0.86244561,67691.0,67690.0,5.14717993]
[1718087948344,1.18644561,67691.0,67690.0,5.14717993]
[1718087951679,1.18651742,67691.0,67690.0,5.14717993]
[1718087951869,1.31927911,67691.0,67690.0,5.14717993]
[1718087952372,1.18651742,67691.0,67690.0,5.14717993]
[1718087952581,1.10101742,67691.0,67690.0,5.14717993]
[1718087952793,1.18651742,67691.0,67690.0,5.14717993]
[1718087953009,1.52914742,67691.0,67690.0,5.00286]
[1718087953237,1.66190911,67691.0,67690.0,5.00286]
[1718087954315,1.57640911,67691.0,67690.0,5.00286]
[1718087954590,1.46190911,67691.0,67690.0,5.00286]
[1718087954833,1.66193671,67691.0,67690.0,5.00286]
[1718087955076,1.46193671,67691.0,67690.0,5.00286]
[1718087955527,1.32917502,67691.0,67690.0,5.00286]
[1718087957138,1.46193671,67691.0,67690.0,5.00286]
[1718087957346,1.32917502,67691.0,67690.0,5.00286]
[1718087957548,1.24367502,67691.0,67690.0,5.00286]
[1718087957773,1.24367502,67691.0,67690.0,5.02166391]
[1718087958001,0.4211945,67691.0,67690.0,5.25796391]
[1718087958219,0.41637382,67691.0,67690.0,5.25796391]
[1718087958443,0.38000408,67691.0,67690.0,5.25796391]
[1718087958683,0.0526022,67691.0,67690.0,5.25796391]
[1718087958910,0.11890194,67691.0,67690.0,5.25796391]
[1718087959147,0.0526022,67691.0,67690.0,5.25796391]
[1718087959349,0.37998099,67691.0,67690.0,5.25796391]
[1718087959562,0.46837746,67691.0,67690.0,5.25796391]
[1718087959778,0.37998099,67691.0,67690.0,5.25796391]
[1718087960233,0.14100334,67691.0,67690.0,5.25796391]
[1718087960437,0.37998099,67691.0,67690.0,5.25796391]
[1718087960642,0.37998099,67691.0,67690.0,5.02166391]
[1718087962603,0.37998114,67691.0,67690.0,5.02166391]
[1718087962976,0.59950107,67691.0,67690.0,5.02166391]
[1718087963466,0.60414011,67691.0,67690.0,5.02166391]
[1718087965394,0.52894011,67691.0,67690.0,5.02166391]
[1718087965609,0.52894011,67691.0,67690.0,5.25396391]
[1718087965771,0.52430107,67691.0,67690.0,5.25396391]
[1718087966201,0.61269512,67691.0,67690.0,5.25396391]
[1718087966831,0.61269512,67691.0,67690.0,5.02166391]
[1718087967042,0.52430107,67691.0,67690.0,5.02166391]
[1718087968096,0.52894011,67691.0,67690.0,5.02166391]
[1718087969019,0.76424011,67691.0,67690.0,5.02166391]
[1718087970257,0.76425408,67691.0,67690.0,5.02166391]
[1718087973291,0.76425163,67691.0,67690.0,5.02166391]
[1718087974783,0.96425163,67691.0,67690.0,5.02166391]
[1718087975199,0.72895163,67691.0,67690.0,5.02166391]
[1718087975841,0.72895163,67691.0,67690.0,5.18746391]
[1718087976046,0.72431259,67691.0,67690.0,5.18746391]
[1718087976261,0.58463921,67691.0,67690.0,5.18746391]
[1718087977766,0.69511448,67691.0,67690.0,5.18746391]
[1718087978786,0.58463921,67691.0,67690.0,5.18746391]
[1718087983106,0.58463803,67691.0,67690.0,5.18746391]
[1718087983948,0.5826777,67691.0,67690.0,5.18746391]
[1718087984536,0.3826777,67691.0,67690.0,5.18746391]
[1718087984915,0.37803115,67691.0,67690.0,5.18746391]
[1718087986101,0.37803115,67691.0,67690.0,5.00286]
[1718087986102,2.32739664,67691.0,67690.0,5.00286]
[1718087986305,2.33180555,67691.0,67690.0,5.00286]
[1718087986569,2.29533049,67691.0,67690.0,5.00286]
[1718087986770,2.33179666,67691.0,67690.0,5.00286]
[1718087987198,2.30379666,67691.0,67690.0,5.00186]
[1718087987770,2.23244724,67691.0,67690.0,5.00186]
[1718087987976,2.29594724,67691.0,67690.0,5.00086]
[1718087988350,2.32394724,67691.0,67690.0,5.00086]
[1718087988795,2.64240724,67691.0,67690.0,5.00086]
[1718087989006,2.66880553,67691.0,67690.0,5.00086]
[1718087989426,2.64240724,67691.0,67690.0,5.00086]
[1718087989628,2.62840724,67691.0,67690.0,5.00086]
[1718087989838,2.61440724,67691.0,67690.0,5.00086]
[1718087990046,2.62840724,67691.0,67690.0,5.00086]
[1718087990499,2.61440724,67691.0,67690.0,5.00086]
[1718087990726,2.52890724,67691.0,67690.0,5.00086]
[1718087990949,2.22444724,67691.0,67690.0,5.00086]
[1718087991163,2.30994724,67691.0,67690.0,5.00086]
[1718087991559,2.32394724,67691.0,67690.0,5.00086]
[1718087992401,2.47283605,67691.0,67690.0,5.00086]
[1718087994209,2.47286948,67691.0,67690.0,5.00086]
[1718087994421,2.38736948,67691.0,67690.0,5.00086]
[1718087994597,2.32398067,67691.0,67690.0,5.00086]
[1718087995049,2.22405278,67691.0,67690.0,5.00086]
[1718087995582,2.22404138,67691.0,67690.0,5.00086]
[1718087995793,2.24176306,67691.0,67690.0,5.00086]
[1718087996048,2.24169306,67691.0,67690.0,5.00086]
[1718087996802,2.24168582,67691.0,67690.0,5.00086]
[1718088000202,2.24357395,67691.0,67690.0,5.00086]
[1718088001692,2.34357395,67691.0,67690.0,5.00086]
[1718088001897,2.63903395,67691.0,67690.0,5.00086]
[1718088003721,1.80037395,67691.0,67690.0,5.00086]
[1718088003968,1.02097395,67691.0,67690.0,5.14517993]
[1718088004191,0.80325227,67691.0,67690.0,5.38937993]
[1718088004418,0.79695523,67691.0,67690.0,5.38937993]
[1718088004659,0.36996734,67691.0,67690.0,5.38937993]
[1718088004877,0.15815559,67691.0,67690.0,5.38937993]
[1718088005107,0.07265559,67691.0,67690.0,5.38937993]
[1718088005318,0.08665559,67691.0,67690.0,5.38937993]
[1718088005756,0.07265559,67691.0,67690.0,5.38937993]
[1718088006192,0.05865559,67691.0,67690.0,5.38937993]
[1718088006685,0.07265942,67691.0,67690.0,5.38937993]
[1718088006885,0.05865942,67691.0,67690.0,5.38937993]
[1718088007314,0.04157187,67691.0,67690.0,5.38937993]
[1718088007671,0.07265903,67691.0,67690.0,5.38937993]
[1718088007876,0.02857187,67691.0,67690.0,5.38937993]
[1718088008075,0.03657187,67691.0,67690.0,5.39037993]
[1718088008674,0.03657187,67691.0,67690.0,5.41037993]
[1718088008895,0.022946,67691.0,67690.0,5.49587993]
[1718088009330,0.022946,67691.0,67690.0,5.64361193]
[1718088009535,0.022946,67691.0,67690.0,5.55811193]
[1718088009953,0.02257187,67691.0,67690.0,5.53811193]
[1718088010206,0.01457187,67691.0,67690.0,5.38937993]
[1718088010383,0.02857187,67691.0,67690.0,5.38937993]
[1718088010586,0.014946,67691.0,67690.0,5.41137993]
[1718088010799,0.000946,67691.0,67690.0,5.41137993]
[1718088011015,0.013946,67691.0,67690.0,5.55711193]
[1718088011471,0.000946,67691.0,67690.0,5.56111193]
[1718088012019,0.000946,67691.0,67690.0,5.55711193]
[1718088012452,0.000946,67691.0,67690.0,5.55911193]
[1718088012893,0.014946,67691.0,67690.0,5.56911193]
[1718088013263,0.014946,67691.0,67690.0,5.70518242]
[1718088013461,0.028946,67691.0,67690.0,5.70518242]
[1718088013911,0.000946,67691.0,67690.0,5.70518242]
[1718088014117,0.000946,67691.0,67690.0,5.94950235]
[1718088014306,0.000946,67691.0,67690.0,5.94750235]
[1718088014460,0.000946,67691.0,67690.0,6.03300235]
[1718088014661,0.014946,67691.0,67690.0,6.03700235]
[1718088015084,0.014946,67691.0,67690.0,6.03300235]
[1718088015441,0.014946,67691.0,67690.0,6.03500235]
[1718088016078,0.000946,67691.0,67690.0,6.03300235]
[1718088016503,0.4718,67705.0,67704.0,0.2648]
[1718088016713,0.00086,67708.0,67707.0,0.02]
[1718088016935,0.00086,67708.0,67707.0,0.2572]
[1718088017396,0.00086,67708.0,67707.0,0.414895]
[1718088017790,0.00086,67708.0,67707.0,0.404895]
[1718088017968,0.00086,67708.0,67707.0,0.414895]
[1718088018220,0.00086,67708.0,67707.0,0.62481243]
[1718088019087,0.00086,67708.0,67707.0,0.61481243]
[1718088019292,0.00086,67708.0,67707.0,0.82841243]
[1718088019494,0.01486,67708.0,67707.0,0.82841243]
[1718088019936,0.00086,67708.0,67707.0,0.82841243]
[1718088020925,0.00886,67708.0,67707.0,0.82941243]
[1718088021587,0.00886,67708.0,67707.0,0.84341243]
[1718088022226,0.00886,67708.0,67707.0,0.83941243]
[1718088022448,0.00886,67708.0,67707.0,0.84341243]
[1718088022609,0.00086,67708.0,67707.0,0.84241243]
[1718088023036,0.01086,67708.0,67707.0,0.83841243]
[1718088023488,0.00086,67708.0,67707.0,0.84241243]
[1718088023686,0.01086,67708.0,67707.0,0.84241243]
[1718088024051,0.00086,67708.0,67707.0,0.84241243]
[1718088024405,0.00686,67708.0,67707.0,0.84241243]
[1718088024617,0.00686,67708.0,67707.0,0.83841243]
[1718088025120,0.00686,67708.0,67707.0,0.84241243]
[1718088025488,0.00686,67708.0,67707.0,1.13380243]
[1718088025704,0.00686,67708.0,67707.0,1.52017656]
[1718088025857,0.00686,67708.0,67707.0,1.34317656]
[1718088026266,0.00686,67708.0,67707.0,1.34717656]
[1718088026494,0.00686,67708.0,67707.0,1.54717656]
[1718088027337,0.00686,67708.0,67707.0,1.34717656]
[1718088027585,0.00686,67708.0,67707.0,1.01420243]
[1718088027821,0.02048587,67708.0,67707.0,0.171695]
[1718088028028,0.02048587,67708.0,67707.0,0.151695]
[1718088028940,0.01448587,67708.0,67707.0,0.147695]
[1718088029146,0.02004738,67708.0,67707.0,0.147695]
[1718088029376,0.03104738,67708.0,67707.0,0.17297459]
[1718088029579,0.02004738,67708.0,67707.0,0.17297459]
[1718088029779,0.02004738,67708.0,67707.0,0.16897459]
[1718088029981,0.03204738,67708.0,67707.0,0.16897459]
[1718088030225,0.02004738,67708.0,67707.0,0.16897459]
[1718088030352,0.02004738,67708.0,67707.0,0.02127959]
[1718088030754,0.03204738,67708.0,67707.0,0.02127959]
[1718088031384,0.03204738,67708.0,67707.0,0.02527959]
[1718088031825,0.03204738,67708.0,67707.0,0.02127959]
[1718088032034,0.02004738,67708.0,67707.0,0.02127959]
[1718088032241,0.02004738,67708.0,67707.0,0.02527959]
[1718088032456,0.03204738,67708.0,67707.0,0.02527959]
[1718088032707,0.17074738,67708.0,67707.0,0.02127959]
[1718088032929,0.01362587,67698.0,67697.0,0.16521466]
[1718088033557,0.01362587,67698.0,67697.0,0.167716]
[1718088033994,0.01362587,67698.0,67697.0,0.147716]
[1718088034231,0.01362587,67698.0,67697.0,0.167716]
[1718088034444,0.01362587,67698.0,67697.0,0.2058476]
[1718088035090,0.01362587,67698.0,67697.0,0.2098476]
[1718088036365,0.15156,67708.0,67697.0,0.2098476]
[1718088036366,0.15156,67708.0,67704.0,0.02]
[1718088036812,0.15156,67708.0,67703.0,0.02]
[1718088037348,0.15156,67708.0,67704.0,0.02]
[1718088037555,0.15156,67708.0,67703.0,0.02]
[1718088037763,0.15156,67708.0,67700.0,0.02]
[1718088037981,0.15556,67708.0,67702.0,0.02]
[1718088038187,0.15556,67708.0,67704.0,0.02]
[1718088038611,0.15156,67708.0,67703.0,0.02]
[1718088038823,0.16856,67708.0,67703.0,0.02]
[1718088039469,0.16556,67708.0,67703.0,0.02]
[1718088039681,0.15156,67708.0,67705.0,0.02]
[1718088039892,0.00086,67708.0,67707.0,0.02]
[1718088040131,0.01486,67708.0,67707.0,0.02]
[1718088040607,0.01486,67708.0,67707.0,0.167695]
[1718088040821,0.01486,67708.0,67707.0,0.2084677]
[1718088041048,0.01886,67708.0,67707.0,0.2084677]
[1718088041493,0.01486,67708.0,67707.0,0.2084677]
[1718088041994,0.00086,67708.0,67707.0,0.60288763]
[1718088042655,0.01486,67708.0,67707.0,0.59988763]
[1718088042874,0.00086,67708.0,67707.0,0.59988763]
[1718088043089,0.00086,67708.0,67707.0,0.89527763]
[1718088043305,0.00086,67708.0,67707.0,1.01827763]
[1718088043523,0.01386,67708.0,67707.0,1.01827763]
[1718088044172,0.00086,67708.0,67707.0,1.01827763]
[1718088044401,0.00086,67708.0,67707.0,1.02127763]
[1718088044859,0.00086,67708.0,67707.0,1.01827763]
[1718088045540,0.00086,67708.0,67707.0,1.02227763]
[1718088047500,0.00086,67708.0,67707.0,1.03973656]
[1718088049214,0.00086,67708.0,67707.0,0.71134656]
[1718088049446,0.00086,67708.0,67707.0,5.71134656]
[1718088050539,0.00086,67708.0,67707.0,5.70734656]
[1718088050763,0.00086,67708.0,67707.0,5.72034656]
[1718088052063,0.00086,67708.0,67707.0,5.71734656]
[1718088052483,0.00086,67708.0,67707.0,5.72034656]
[1718088053743,0.00086,67708.0,67707.0,5.71734656]
[1718088054162,0.00086,67708.0,67707.0,5.72034656]
[1718088055202,0.00086,67708.0,67707.0,6.03873656]
[1718088055624,0.00086,67708.0,67707.0,6.13873656]
[1718088055833,0.00086,67708.0,67707.0,6.81499609]
[1718088056047,0.00086,67708.0,67707.0,6.61499609]
[1718088056886,0.00086,67708.0,67707.0,6.61199609]
[1718088057114,0.00086,67708.0,67707.0,6.81199609]
[1718088057340,0.00086,67708.0,67707.0,6.81499609]
[1718088057772,0.00086,67708.0,67707.0,6.61499609]
[1718088057981,0.00086,67708.0,67707.0,6.61199609]
[1718088058205,0.00086,67708.0,67707.0,6.61499609]
[1718088058422,0.00086,67708.0,67707.0,6.61478898]
[1718088058628,0.00086,67708.0,67707.0,6.61078898]
[1718088059467,0.00086,67708.0,67707.0,6.43012656]
[1718088060135,0.00086,67708.0,67707.0,6.03473656]
[1718088061453,0.00086,67708.0,67707.0,6.03173656]
[1718088061656,0.00086,67708.0,67707.0,6.03473656]
[1718088062722,0.00086,67708.0,67707.0,6.23473656]
[1718088062923,0.00086,67708.0,67707.0,6.03473656]
[1718088063370,0.00086,67708.0,67707.0,6.03173656]
[1718088063818,0.00086,67708.0,67707.0,6.03473656]
[1718088064026,0.00086,67708.0,67707.0,6.13473656]
[1718088064227,0.00086,67708.0,67707.0,6.15865408]
[1718088064638,0.00086,67708.0,67707.0,6.16165408]
[1718088065163,0.00086,67708.0,67707.0,6.36165408]
[1718088065372,0.00086,67708.0,67707.0,6.34163068]
[1718088065587,0.00086,67708.0,67707.0,6.54163068]
[1718088066652,0.00086,67708.0,67707.0,6.54110887]
[1718088066867,0.00086,67708.0,67707.0,6.34110887]
[1718088067316,0.00086,67708.0,67707.0,6.23810887]
[1718088067545,0.00086,67708.0,67707.0,5.89921887]
[1718088067725,0.00086,67708.0,67707.0,5.71976408]
[1718088068363,0.00086,67708.0,67707.0,5.89623806]
[1718088068981,0.00086,67708.0,67707.0,5.8957671]
[1718088069912,0.00086,67708.0,67707.0,5.8987671]
[1718088070324,0.00086,67708.0,67707.0,5.8957671]
[1718088070709,0.00086,67708.0,67707.0,5.8987671]
[1718088071188,0.00086,67708.0,67707.0,5.8363671]
[1718088071402,0.00086,67708.0,67707.0,6.0499671]
[1718088071613,0.00086,67708.0,67707.0,6.0529671]
[1718088071812,0.00086,67708.0,67707.0,6.02604958]
[1718088073014,0.00086,67708.0,67707.0,6.02304958]
[1718088073434,0.00086,67708.0,67707.0,6.02604958]
[1718088073840,0.00086,67708.0,67707.0,6.09962879]
[1718088074199,0.00086,67708.0,67707.0,6.10262879]
[1718088074609,0.00086,67708.0,67707.0,6.09962879]
[1718088074842,0.00086,67708.0,67707.0,6.10003022]
[1718088075043,0.00086,67708.0,67707.0,6.10303022]
[1718088075988,0.00086,67708.0,67707.0,6.39842022]
[1718088078046,0.00086,67708.0,67707.0,6.24422042]
[1718088078272,0.00086,67708.0,67707.0,6.38670046]
[1718088079825,0.00086,67708.0,67707.0,6.37670046]
[1718088080063,0.00086,67708.0,67707.0,6.16310046]
[1718088080277,0.00086,67708.0,67707.0,5.76771046]
[1718088080496,0.15706,67708.0,67707.0,5.58530601]
[1718088081208,0.15706,67708.0,67707.0,5.44398608]
[1718088081383,0.23276,67708.0,67707.0,5.42798608]
[1718088081603,0.23276,67708.0,67707.0,5.43098608]
[1718088081878,0.23276,67708.0,67707.0,5.22505945]
[1718088082118,0.23276,67708.0,67707.0,5.0]
[1718088082329,0.23176251,67708.0,67707.0,5.0]
[1718088082977,0.22876251,67708.0,67707.0,5.0]
[1718088083191,0.22876251,67708.0,67707.0,5.14431993]
[1718088083401,0.24276251,67708.0,67707.0,5.14731993]
[1718088084031,0.24258475,67708.0,67707.0,5.14431993]
[1718088084453,0.24658475,67708.0,67707.0,5.14431993]
[1718088084656,0.23258475,67708.0,67707.0,5.14431993]
[1718088084860,0.22858475,67708.0,67707.0,5.14431993]
[1718088085070,0.24258475,67708.0,67707.0,5.14431993]
[1718088085266,0.24858475,67708.0,67707.0,5.14531993]
[1718088085485,0.23458475,67708.0,67707.0,5.14531993]
[1718088085903,0.24258475,67708.0,67707.0,5.14431993]
[1718088087358,0.24958475,67708.0,67707.0,5.14531993]
[1718088087966,0.24258475,67708.0,67707.0,5.14431993]
[1718088088194,0.25058475,67708.0,67707.0,5.14531993]
[1718088088636,0.23658475,67708.0,67707.0,5.14531993]
[1718088088844,0.25058475,67708.0,67707.0,5.14626593]
[1718088089055,0.25144475,67708.0,67707.0,5.14626593]
[1718088090829,0.38776468,67708.0,67707.0,5.000946]
[1718088091206,0.40292717,67708.0,67707.0,5.001946]
[1718088091555,0.44075179,67708.0,67707.0,5.001946]
[1718088091762,0.41775179,67708.0,67707.0,5.000946]
[1718088091938,0.43791476,67708.0,67707.0,5.001946]
[1718088092177,0.44375179,67708.0,67707.0,5.14626593]
[1718088092363,0.38576468,67708.0,67707.0,5.14626593]
[1718088092781,0.40732241,67708.0,67707.0,5.14626593]
[1718088094780,0.39976468,67708.0,67707.0,5.14626593]
[1718088095259,0.40732241,67708.0,67707.0,5.14626593]
[1718088096116,0.39332241,67708.0,67707.0,5.14626593]
[1718088096349,0.40732241,67708.0,67707.0,5.14626593]
[1718088096809,0.38776468,67708.0,67707.0,5.14526593]
[1718088097284,0.02686,67708.0,67707.0,5.24776593]
[1718088098166,0.00086,67708.0,67707.0,5.24676593]
[1718088098608,0.01686,67708.0,67707.0,5.39446093]